fUSD/lending_fUSD_20240422
["ID","MTS","AMOUNT","RATE_DAILY","PERIOD"]
[323230187,1713818069831,-647.46733904,0.00019178,2]
[323230188,1713818069843,-527.77,0.00019178,2]
[323230189,1713818069853,-1757.63,0.00019178,2]
[323230190,1713818069863,-1390.28,0.00019178,2]
[323230191,1713818069873,-800.72,0.00019178,2]
[323230192,1713818069882,-543.73,0.00019178,2]
[323230193,1713818069892,-1503.69,0.00019178,2]
[323230194,1713818069904,-560.39,0.00019178,2]
[323230195,1713818069914,-710.37,0.00019178,2]
[323230196,1713818069922,-8671.29,0.00019178,2]
[323230197,1713818069931,-2737.44,0.00019178,2]
[323230198,1713818069943,-991.82,0.00019178,2]
[323230199,1713818069961,-500.0,0.00019178,2]
[323230200,1713818069971,-1220.79,0.00019178,2]
[323230201,1713818069982,-500.0,0.00019178,2]
[323230202,1713818069992,-3731.89,0.00019178,2]
[323230203,1713818070002,-4012.68,0.00019178,2]
[323230204,1713818070012,-1170.18,0.00019178,2]
[323230205,1713818070023,-1044.89,0.00019178,2]
[323230206,1713818070032,-1190.98,0.00019178,2]
[323230207,1713818070042,-773.35,0.00019178,2]
[323230208,1713818070053,-12096.17,0.00019178,2]
[323230209,1713818070063,-508.4,0.00019178,2]
[323230210,1713818070074,-938.55,0.00019178,2]
[323230211,1713818070083,-20433.91,0.00019178,2]
[323230212,1713818070093,-1147.24,0.00019178,2]
[323230213,1713818070102,-1529.34,0.00019178,2]
[323230214,1713818070111,-4437.11,0.00019178,2]
[323230215,1713818070121,-1727.84,0.00019178,2]
[323230216,1713818070131,-3682.04,0.00019178,2]
[323230217,1713818070140,-502.61,0.00019178,2]
[323230218,1713818070149,-1045.51,0.00019178,2]
[323230219,1713818070158,-4397.02,0.00019178,2]
[323230220,1713818070168,-2939.82,0.00019178,2]
[323230221,1713818070177,-4066.35,0.00019178,2]
[323230222,1713818070187,-2694.54,0.00019178,2]
[323230223,1713818070196,-9104.68,0.00019178,2]
[323230224,1713818070206,-606.84,0.00019178,2]
[323230225,1713818070215,-675.73,0.00019178,2]
[323230226,1713818070225,-13312.5,0.00019178,2]
[323230227,1713818070234,-1227.83,0.00019178,2]
[323230228,1713818070244,-843.14,0.00019178,2]
[323230229,1713818070254,-4924.18,0.00019178,2]
[323230230,1713818070263,-500.0,0.00019178,2]
[323230231,1713818070273,-752.32,0.00019178,2]
[323230232,1713818070283,-2295.67,0.00019178,2]
[323230233,1713818070292,-1329.4,0.00019178,2]
[323230234,1713818070301,-19623.04,0.00019178,2]
[323230235,1713818070310,-4571.21,0.00019178,2]
[323230236,1713818070320,-696.75,0.00019178,2]
[323230237,1713818070329,-8822.49,0.00019178,2]
[323230238,1713818070338,-1065.73,0.00019178,2]
[323230239,1713818070346,-4272.21,0.00019178,2]
[323230240,1713818070355,-2754.05,0.00019178,2]
[323230241,1713818070365,-2238.45,0.00019178,2]
[323230242,1713818070374,-1968.05,0.00019178,2]
[323230243,1713818070383,-17508.63,0.00019178,2]
[323230244,1713818070392,-5023.5,0.00019178,2]
[323230245,1713818070401,-1827.86,0.00019178,2]
[323230246,1713818070410,-5798.87,0.00019178,2]
[323230247,1713818070419,-975.21,0.00019178,2]
[323230248,1713818070428,-4518.5,0.00019178,2]
[323230249,1713818070437,-3464.58,0.00019178,2]
[323230250,1713818070446,-1356.45,0.00019178,2]
[323230251,1713818070456,-533.11,0.00019178,2]
[323230252,1713818070465,-7647.7,0.00019178,2]
[323230253,1713818070474,-980.74,0.00019178,2]
[323230254,1713818070482,-866.39,0.00019178,2]
[323230255,1713818070491,-6333.04,0.00019178,2]
[323230256,1713818070501,-1130.77,0.00019178,2]
[323230257,1713818070510,-1424.13,0.00019178,2]
[323230258,1713818070519,-5213.97,0.00019178,2]
[323230259,1713818070528,-1043.08,0.00019178,2]
[323230260,1713818070537,-500.0,0.00019178,2]
[323230261,1713818070546,-4957.21,0.00019178,2]
[323230262,1713818070555,-972.86,0.00019178,2]
[323230263,1713818070565,-1902.61,0.00019178,2]
[323230264,1713818070574,-2426.59,0.00019178,2]
[323230265,1713818070583,-17087.41,0.00019178,2]
[323230266,1713818070593,-4288.29,0.00019178,2]
[323230267,1713818070603,-1173.49,0.00019178,2]
[323230268,1713818070612,-8646.75,0.00019178,2]
[323230269,1713818070622,-8918.06,0.00019178,2]
[323230270,1713818070632,-663.73,0.00019178,2]
[323230271,1713818070641,-5848.77,0.00019178,2]
[323230272,1713818070651,-14690.22,0.00019178,2]
[323230273,1713818070659,-1312.73,0.00019178,2]
[323230274,1713818070669,-506.74,0.00019178,2]
[323230275,1713818070678,-2234.61,0.00019178,2]
[323230276,1713818070687,-648.66,0.00019178,2]
[323230277,1713818070696,-10938.94,0.00019178,2]
[323230278,1713818070705,-1962.25,0.00019178,2]
[323230279,1713818070714,-2886.61,0.00019178,2]
[323230280,1713818070723,-1997.87,0.00019178,2]
[323230281,1713818070732,-579.41,0.00019178,2]
[323230282,1713818070741,-53885.3,0.00019178,2]
[323230283,1713818070750,-1244.34,0.00019178,2]
[323230284,1713818070759,-4051.64,0.00019178,2]
[323230285,1713818070769,-1590.37,0.00019178,2]
[323230286,1713818070778,-7669.72,0.00019178,2]
[323230287,1713818070787,-2521.35,0.00019178,2]
[323230288,1713818070796,-1645.21,0.00019178,2]
[323230289,1713818070806,-1510.42,0.00019178,2]
[323230290,1713818070815,-1343.13,0.00019178,2]
[323230291,1713818070824,-2236.17,0.00019178,2]
[323230292,1713818070834,-1028.46,0.00019178,2]
[323230293,1713818070842,-5067.75,0.00019178,2]
[323230294,1713818070852,-803.65,0.00019178,2]
[323230295,1713818070861,-1544.16,0.00019178,2]
[323230296,1713818070870,-754.93,0.00019178,2]
[323230297,1713818070881,-26471.53,0.00019178,2]
[323230298,1713818070890,-1051.95,0.00019178,2]
[323230299,1713818070901,-1582.45,0.00019178,2]
[323230300,1713818070911,-1393.84,0.00019178,2]
[323230301,1713818070922,-11812.41,0.00019178,2]
[323230302,1713818070932,-1564.41,0.00019178,2]
[323230303,1713818070941,-807.31,0.00019178,2]
[323230304,1713818070953,-3864.45,0.00019178,2]
[323230305,1713818070963,-3718.52,0.00019178,2]
[323230306,1713818070973,-5811.41,0.00019178,2]
[323230307,1713818070984,-6037.29,0.00019178,2]
[323230308,1713818070994,-6389.88,0.00019178,2]
[323230309,1713818071003,-1502.85,0.00019178,2]
[323230310,1713818071013,-2889.09,0.00019178,2]
[323230311,1713818071022,-669.89,0.00019178,2]
[323230312,1713818071032,-500.0,0.00019178,2]
[323230313,1713818071041,-1991.04,0.00019178,2]
[323230314,1713818071050,-5057.75,0.00019178,2]
[323230315,1713818071059,-610.24,0.00019178,2]
[323230316,1713818071068,-2149.82,0.00019178,2]
[323230317,1713818071078,-2535.93,0.00019178,2]
[323230318,1713818071087,-321.05,0.00019178,2]
[323230319,1713818071097,-2095.61,0.00019178,2]
[323230320,1713818071106,-9434.59,0.00019178,2]
[323230321,1713818071115,-558.4,0.00019178,2]
[323230322,1713818071125,-1851.7,0.00019178,2]
[323230323,1713818071134,-1148.52,0.00019178,2]
[323230324,1713818071143,-2751.02,0.00019178,2]
[323230325,1713818071153,-346.3,0.00019178,2]
[323230326,1713818071161,-2872.2,0.00019178,2]
[323230327,1713818071170,-560.07,0.00019178,2]
[323230328,1713818071180,-2848.87,0.00019178,2]
[323230329,1713818071189,-4572.48,0.00019178,2]
[323230330,1713818071198,-6735.46,0.00019178,2]
[323230331,1713818071207,-12108.08,0.00019178,2]
[323230332,1713818071216,-2605.69,0.00019178,2]
[323230333,1713818071226,-505.78,0.00019178,2]
[323230334,1713818071235,-1139.18,0.00019178,2]
[323230335,1713818071244,-4970.85,0.00019178,2]
[323230336,1713818071254,-5993.52,0.00019178,2]
[323230337,1713818071263,-4162.92,0.00019178,2]
[323230338,1713818071272,-4558.05,0.00019178,2]
[323230339,1713818071282,-2320.73,0.00019178,2]
[323230340,1713818071291,-38504.87,0.00019178,2]
[323230341,1713818071300,-2509.82,0.00019178,2]
[323230342,1713818071309,-782.97,0.00019178,2]
[323230343,1713818071319,-4258.45,0.00019178,2]
[323230344,1713818071328,-1377.87,0.00019178,2]
[323230345,1713818071337,-2445.43,0.00019178,2]
[323230346,1713818071346,-1194.19,0.00019178,2]
[323230347,1713818071355,-844.44,0.00019178,2]
[323230348,1713818071364,-1360.06,0.00019178,2]
[323230349,1713818071374,-1464.57,0.00019178,2]
[323230350,1713818071383,-535.38,0.00019178,2]
[323230351,1713818071392,-519.11,0.00019178,2]
[323230352,1713818071401,-2389.58,0.00019178,2]
[323230353,1713818071411,-4846.13,0.00019178,2]
[323230354,1713818071420,-2486.12,0.00019178,2]
[323230355,1713818071430,-4078.34,0.00019178,2]
[323230356,1713818071439,-1059.02,0.00019178,2]
[323230357,1713818071448,-4269.95,0.00019178,2]
[323230358,1713818071458,-9091.85,0.00019178,2]
[323230359,1713818071467,-5188.48,0.00019178,2]
[323230360,1713818071476,-3845.3,0.00019178,2]
[323230361,1713818071485,-1379.16,0.00019178,2]
[323230362,1713818071495,-3772.2,0.00019178,2]
[323230363,1713818071505,-2377.01,0.00019178,2]
[323230364,1713818071514,-3089.82,0.00019178,2]
[323230365,1713818071524,-11616.79,0.00019178,2]
[323230366,1713818071533,-1036.73,0.00019178,2]
[323230367,1713818071542,-894.91,0.00019178,2]
[323230368,1713818071552,-519.63,0.00019178,2]
[323230369,1713818071561,-500.0,0.00019178,2]
[323230370,1713818071571,-3283.29,0.00019178,2]
[323230371,1713818071580,-574.54,0.00019178,2]
[323230372,1713818071589,-6142.2,0.00019178,2]
[323230373,1713818071598,-7530.97,0.00019178,2]
[323230374,1713818071607,-1052.32,0.00019178,2]
[323230375,1713818071616,-1615.52,0.00019178,2]
[323230376,1713818071627,-8074.97,0.00019178,2]
[323230377,1713818071636,-1654.01,0.00019178,2]
[323230378,1713818071645,-2299.35,0.00019178,2]
[323230379,1713818071654,-4170.98,0.00019178,2]
[323230380,1713818071663,-3119.61,0.00019178,2]
[323230381,1713818071672,-841.29,0.00019178,2]
[323230382,1713818071681,-9718.3,0.00019178,2]
[323230383,1713818071690,-1294.69,0.00019178,2]
[323230384,1713818071699,-580.64,0.00019178,2]
[323230385,1713818071708,-2541.75,0.00019178,2]
[323230386,1713818071717,-500.0,0.00019178,2]
[323230387,1713818071726,-555.29,0.00019178,2]
[323230388,1713818071735,-2729.9,0.00019178,2]
[323230389,1713818071744,-2620.59,0.00019178,2]
[323230390,1713818071753,-1646.2,0.00019178,2]
[323230391,1713818071762,-3612.79,0.00019178,2]
[323230392,1713818071772,-3159.44,0.00019178,2]
[323230393,1713818071781,-5252.04,0.00019178,2]
[323230394,1713818071791,-350.0,0.00019178,2]
[323230395,1713818071800,-1523.59,0.00019178,2]
[323230396,1713818071809,-608.44,0.00019178,2]
[323230397,1713818071818,-13095.85,0.00019178,2]
[323230398,1713818071828,-5833.37,0.00019178,2]
[323230399,1713818071837,-6897.16,0.00019178,2]
[323230400,1713818071846,-6152.13,0.00019178,2]
[323230401,1713818071855,-3299.3,0.00019178,2]
[323230402,1713818071863,-1238.36,0.00019178,2]
[323230403,1713818071873,-13435.6,0.00019178,2]
[323230404,1713818071882,-943.08,0.00019178,2]
[323230405,1713818071892,-3819.44,0.00019178,2]
[323230406,1713818071902,-769.83,0.00019178,2]
[323230407,1713818071912,-1406.96,0.00019178,2]
[323230408,1713818071921,-500.0,0.00019178,2]
[323230409,1713818071930,-722.61,0.00019178,2]
[323230410,1713818071939,-930.5,0.00019178,2]
[323230411,1713818071950,-2367.11,0.00019178,2]
[323230412,1713818071959,-780.85,0.00019178,2]
[323230413,1713818071968,-7256.26,0.00019178,2]
[323230414,1713818071978,-1025.63,0.00019178,2]
[323230415,1713818071987,-10754.04,0.00019178,2]
[323230416,1713818071996,-634.73,0.00019178,2]
[323230417,1713818072005,-500.0,0.00019178,2]
[323230418,1713818072014,-530.36,0.00019178,2]
[323230419,1713818072024,-2911.37,0.00019178,2]
[323230420,1713818072033,-6189.49,0.00019178,2]
[323230421,1713818072042,-943.08,0.00019178,2]
[323230422,1713818072051,-4556.59,0.00019178,2]
[323230423,1713818072060,-523.92,0.00019178,2]
[323230424,1713818072070,-1833.33,0.00019178,2]
[323230425,1713818072079,-1392.71,0.00019178,2]
[323230426,1713818072089,-664.1,0.00019178,2]
[323230427,1713818072098,-1487.75,0.00019178,2]
[323230428,1713818072108,-500.0,0.00019178,2]
[323230429,1713818072117,-4694.74,0.00019178,2]
[323230430,1713818072127,-1392.18,0.00019178,2]
[323230431,1713818072136,-819.7,0.00019178,2]
[323230432,1713818072145,-3597.55,0.00019178,2]
[323230433,1713818072155,-806.58,0.00019178,2]
[323230434,1713818072164,-1874.89,0.00019178,2]
[323230435,1713818072174,-3150.13,0.00019178,2]
[323230436,1713818072183,-1514.8,0.00019178,2]
[323230437,1713818072193,-702.44,0.00019178,2]
[323230438,1713818072202,-1715.22,0.00019178,2]
[323230439,1713818072212,-1604.37,0.00019178,2]
[323230440,1713818072221,-1853.0,0.00019178,2]
[323230441,1713818072231,-587.401068,0.00019178,2]
[323230442,1713818072241,-587.401068,0.00019178,2]
[323230443,1713818072250,-587.401068,0.00019178,2]
[323230444,1713818072260,-587.401068,0.00019178,2]
[323230445,1713818072269,-587.401068,0.00019178,2]
[323230446,1713818072278,-587.401068,0.00019178,2]
[323230447,1713818072287,-587.401068,0.00019178,2]
[323230448,1713818072297,-587.401068,0.00019178,2]
[323230449,1713818072306,-587.401068,0.00019178,2]
[323230450,1713818072315,-587.401068,0.00019178,2]
[323230451,1713818072325,-587.401068,0.00019178,2]
[323230452,1713818072334,-587.401068,0.00019178,2]
[323230453,1713818072343,-587.401068,0.00019178,2]
[323230454,1713818072353,-587.401068,0.00019178,2]
[323230455,1713818072362,-587.401068,0.00019178,2]
[323230456,1713818072371,-587.401068,0.00019178,2]
[323230457,1713818072381,-587.401068,0.00019178,2]
[323230458,1713818072391,-587.401068,0.00019178,2]
[323230459,1713818072400,-587.401068,0.00019178,2]
[323230460,1713818072410,-587.401069,0.00019178,2]
[323230461,1713818072419,-200.0,0.00019178,2]
[323230462,1713818072428,-2139.92,0.00019178,2]
[323230463,1713818072437,-200.0,0.00019178,2]
[323230464,1713818072446,-200.0,0.00019178,2]
[323230465,1713818072455,-200.0,0.00019178,2]
[323230466,1713818072465,-200.0,0.00019178,2]
[323230467,1713818072474,-200.0,0.00019178,2]
[323230468,1713818072483,-168.0,0.00019178,2]
[323230469,1713818072492,-3122.3,0.00019178,2]
[323230470,1713818072501,-55000.0,0.00019178,2]
[323230471,1713818072510,-200.53514067,0.00019178,2]
[323230472,1713818072519,-161.58831606,0.00019187,2]
[323230473,1713818072529,-153.48106534,0.0001919,2]
[323230474,1713818072538,-4196.12,0.000192,2]
[323230475,1713818072549,-13376.1669413,0.000192,2]
[323230476,1713818072558,-4600.59,0.000192,2]
[323230477,1713818072567,-3164.95,0.000192,2]
[323230478,1713818072576,-2502.33465566,0.000192,2]
[323230479,1713818072585,-1000.0,0.00019204,2]
[323230480,1713818072594,-1543.0,0.00019205,2]
[323230481,1713818072603,-508.0,0.00019205,2]
[323230482,1713818072612,-766.62411611,0.00019223,2]
[323230483,1713818072621,-153.63168074,0.00019225,2]
[323230484,1713818072632,-154.51581865,0.00019249,2]
[323230485,1713818072641,-3124.80384862,0.00019263,2]
[323230486,1713818072650,-811.70626689,0.00019271,2]
[323230487,1713818072659,-1003.06,0.0001929,2]
[323230488,1713818072669,-689.01229427,0.00019296,2]
[323230489,1713818072678,-483.43153924,0.00019334,2]
[323230490,1713818072687,-689.01229427,0.00019341,2]
[323230491,1713818072697,-689.01229427,0.00019342,2]
[323230492,1713818072706,-1000.0,0.00019347,2]
[323230493,1713818072715,-154.96772219,0.00019349,2]
[323230494,1713818072725,-152.0,0.00019374,6]
[323230495,1713818072735,-2555.01307111,0.00019383,2]
[323230496,1713818072746,-154.51581865,0.00019397,2]
[323230497,1713818072756,-1058.97,0.00019452,2]
[323230498,1713818072766,-613.72,0.00019452,2]
[323230499,1713818072776,-540.41,0.00019452,2]
[323230500,1713818072785,-1669.03,0.00019452,2]
[323230501,1713818072795,-1371.14,0.00019452,2]
[323230502,1713818072806,-776.94,0.00019452,2]
[323230503,1713818072815,-587.95,0.00019452,2]
[323230504,1713818072823,-1126.73,0.00019452,2]
[323230505,1713818072833,-1027.81,0.00019452,2]
[323230506,1713818072841,-895.63,0.00019452,2]
[323230507,1713818072850,-560.73,0.00019452,2]
[323230508,1713818072859,-500.0,0.00019452,2]
[323230509,1713818072869,-541.08,0.00019452,2]
[323230510,1713818072878,-706.11,0.00019452,2]
[323230511,1713818072887,-629.02,0.00019452,2]
[323230512,1713818072896,-584.95,0.00019452,2]
[323230513,1713818072909,-1117.61,0.00019452,2]
[323230514,1713818072919,-1070.74,0.00019452,2]
[323230515,1713818072928,-1292.86,0.00019452,2]
[323230516,1713818072938,-1409.26,0.00019452,2]
[323230517,1713818072948,-895.28,0.00019452,2]
[323230518,1713818072958,-627.63,0.00019452,2]
[323230519,1713818072968,-1508.56,0.00019452,2]
[323230520,1713818072978,-1031.2,0.00019452,2]
[323230521,1713818072987,-500.0,0.00019452,2]
[323230522,1713818072996,-500.0,0.00019452,2]
[323230523,1713818073005,-632.96,0.00019452,2]
[323230524,1713818073015,-718.9,0.00019452,2]
[323230525,1713818073026,-969.56,0.00019452,2]
[323230526,1713818073036,-332.97104379,0.00019452,2]
[323230527,1713818073045,-1375.45,0.00019452,2]
[323230528,1713818073054,-1338.67,0.00019452,2]
[323230529,1713818073064,-643.12,0.00019452,2]
[323230530,1713818073073,-1299.86,0.00019452,2]
[323230531,1713818073082,-1086.66,0.00019452,2]
[323230532,1713818073091,-1120.16,0.00019452,2]
[323230533,1713818073100,-960.06,0.00019452,2]
[323230534,1713818073109,-500.0,0.00019452,2]
[323230535,1713818073268,-534.21,0.00019452,2]
[323230536,1713818073278,-753.19,0.00019452,2]
[323230537,1713818073288,-811.84,0.00019452,2]
[323230538,1713818073297,-1092.53,0.00019452,2]
[323230539,1713818073307,-546.54,0.00019452,2]
[323230540,1713818073316,-1749.53,0.00019452,2]
[323230541,1713818073326,-1083.17,0.00019452,2]
[323230542,1713818073336,-953.67,0.00019452,2]
[323230543,1713818073345,-1474.11,0.00019452,2]
[323230544,1713818073354,-1939.69,0.00019452,2]
[323230545,1713818073363,-1150.37,0.00019452,2]
[323230546,1713818073372,-1191.57,0.00019452,2]
[323230547,1713818073382,-873.37,0.00019452,2]
[323230548,1713818073391,-548.01,0.00019452,2]
[323230549,1713818073399,-1713.21,0.00019452,2]
[323230550,1713818073409,-860.95,0.00019452,2]
[323230551,1713818073418,-583.38,0.00019452,2]
[323230552,1713818073427,-983.83,0.00019452,2]
[323230553,1713818073436,-778.64,0.00019452,2]
[323230554,1713818073446,-848.86,0.00019452,2]
[323230555,1713818073455,-1645.42,0.00019452,2]
[323230556,1713818073464,-991.23,0.00019452,2]
[323230557,1713818073473,-919.27,0.00019452,2]
[323230558,1713818073483,-650.08,0.00019452,2]
[323230559,1713818073492,-849.94,0.00019452,2]
[323230560,1713818073502,-965.68,0.00019452,2]
[323230561,1713818073511,-648.35,0.00019452,2]
[323230562,1713818073520,-653.61,0.00019452,2]
[323230563,1713818073529,-849.99,0.00019452,2]
[323230564,1713818073538,-872.51,0.00019452,2]
[323230565,1713818073548,-883.24,0.00019452,2]
[323230566,1713818073557,-1446.77,0.00019452,2]
[323230567,1713818073567,-668.79,0.00019452,2]
[323230568,1713818073577,-1711.08,0.00019452,2]
[323230569,1713818073586,-586.1,0.00019452,2]
[323230570,1713818073595,-643.67,0.00019452,2]
[323230571,1713818073605,-1611.58,0.00019452,2]
[323230572,1713818073614,-710.31,0.00019452,2]
[323230573,1713818073624,-1122.42,0.00019452,2]
[323230574,1713818073633,-585.05,0.00019452,2]
[323230575,1713818073642,-844.75,0.00019452,2]
[323230576,1713818073652,-941.73,0.00019452,2]
[323230577,1713818073661,-758.68,0.00019452,2]
[323230578,1713818073670,-1156.31,0.00019452,2]
[323230579,1713818073679,-905.56,0.00019452,2]
[323230580,1713818073688,-1225.61,0.00019452,2]
[323230581,1713818073697,-762.49,0.00019452,2]
[323230582,1713818073707,-580.72,0.00019452,2]
[323230583,1713818073716,-1207.15,0.00019452,2]
[323230584,1713818073725,-847.4,0.00019452,2]
[323230585,1713818073735,-889.65,0.00019452,2]
[323230586,1713818073743,-1458.35,0.00019452,2]
[323230587,1713818073753,-1857.12,0.00019452,2]
[323230588,1713818073762,-1346.71,0.00019452,2]
[323230589,1713818073771,-1384.06,0.00019452,2]
[323230590,1713818073780,-797.75,0.00019452,2]
[323230591,1713818073790,-838.1,0.00019452,2]
[323230592,1713818073799,-666.81,0.00019452,2]
[323230593,1713818073808,-500.0,0.00019452,2]
[323230594,1713818073818,-515.46,0.00019452,2]
[323230595,1713818073827,-562.19,0.00019452,2]
[323230596,1713818073836,-1234.42,0.00019452,2]
[323230597,1713818073846,-1329.82,0.00019452,2]
[323230598,1713818073855,-982.2,0.00019452,2]
[323230599,1713818073865,-413.92288153,0.00019452,2]
[323230600,1713818073874,-2343.61,0.00019452,2]
[323230601,1713818073883,-1458.64,0.00019452,2]
[323230602,1713818073893,-847.85,0.00019452,2]
[323230603,1713818073904,-606.71805572,0.00019452,2]
[323230604,1713818073915,-1545.79,0.00019452,2]
[323230605,1713818073925,-3597.84,0.00019452,2]
[323230606,1713818073935,-715.1,0.00019452,2]
[323230607,1713818073945,-1489.81,0.00019452,2]
[323230608,1713818073955,-1733.17,0.00019452,2]
[323230609,1713818073964,-1331.5,0.00019452,2]
[323230610,1713818073974,-1524.01,0.00019452,2]
[323230611,1713818073984,-1445.52,0.00019452,2]
[323230612,1713818073994,-521.23,0.00019452,2]
[323230613,1713818074004,-1681.34,0.00019452,2]
[323230614,1713818074013,-1162.45,0.00019452,2]
[323230615,1713818074023,-619.96,0.00019452,2]
[323230616,1713818074032,-1395.37,0.00019452,2]
[323230617,1713818074042,-255.26,0.00019452,2]
[323230618,1713818074052,-500.0,0.00019452,2]
[323230619,1713818074061,-850.51,0.00019452,2]
[323230620,1713818074071,-651.79,0.00019452,2]
[323230621,1713818074080,-1280.9,0.00019452,2]
[323230622,1713818074090,-1459.47,0.00019452,2]
[323230623,1713818074100,-538.6,0.00019452,2]
[323230624,1713818074109,-534.9,0.00019452,2]
[323230625,1713818074119,-537.01,0.00019452,2]
[323230626,1713818074128,-514.88,0.00019452,2]
[323230627,1713818074138,-1610.79,0.00019452,2]
[323230628,1713818074147,-1363.17,0.00019452,2]
[323230629,1713818074156,-786.16,0.00019452,2]
[323230630,1713818074165,-746.38,0.00019452,2]
[323230631,1713818074175,-788.48,0.00019452,2]
[323230632,1713818074185,-1371.5,0.00019452,2]
[323230633,1713818074194,-572.35,0.00019452,2]
[323230634,1713818074204,-1080.61,0.00019452,2]
[323230635,1713818074214,-1639.44,0.00019452,2]
[323230636,1713818074223,-927.48,0.00019452,2]
[323230637,1713818074233,-1053.33,0.00019452,2]
[323230638,1713818074242,-2417.44,0.00019452,2]
[323230639,1713818074251,-820.45,0.00019452,2]
[323230640,1713818074261,-616.6,0.00019452,2]
[323230641,1713818074270,-1496.35,0.00019452,2]
[323230642,1713818074279,-1901.34,0.00019452,2]
[323230643,1713818074289,-1504.69,0.00019452,2]
[323230644,1713818074298,-531.85,0.00019452,2]
[323230645,1713818074308,-1164.49,0.00019452,2]
[323230646,1713818074317,-1438.6,0.00019452,2]
[323230647,1713818074326,-1596.3,0.00019452,2]
[323230648,1713818074337,-1493.64,0.00019452,2]
[323230649,1713818074346,-889.74,0.00019452,2]
[323230650,1713818074355,-693.72,0.00019452,2]
[323230651,1713818074365,-549.16,0.00019452,2]
[323230652,1713818074375,-1184.52,0.00019452,2]
[323230653,1713818074384,-1024.32,0.00019452,2]
[323230654,1713818074393,-1243.7,0.00019452,2]
[323230655,1713818074403,-675.02,0.00019452,2]
[323230656,1713818074412,-2073.0,0.00019452,2]
[323230657,1713818074422,-1245.39,0.00019452,2]
[323230658,1713818074431,-1364.07,0.00019452,2]
[323230659,1713818074441,-1296.17,0.00019452,2]
[323230660,1713818074450,-785.15,0.00019452,2]
[323230661,1713818074459,-1343.23,0.00019452,2]
[323230662,1713818074468,-1627.92,0.00019452,2]
[323230663,1713818074478,-1215.57,0.00019452,2]
[323230664,1713818074487,-1663.91,0.00019452,2]
[323230665,1713818074496,-1496.62,0.00019452,2]
[323230666,1713818074505,-781.7,0.00019452,2]
[323230667,1713818074514,-1013.21,0.00019452,2]
[323230668,1713818074523,-1291.68,0.00019452,2]
[323230669,1713818074533,-1208.61,0.00019452,2]
[323230670,1713818074542,-1167.1,0.00019452,2]
[323230671,1713818074552,-636.48,0.00019452,2]
[323230672,1713818074561,-979.58,0.00019452,2]
[323230673,1713818074570,-1192.84,0.00019452,2]
[323230674,1713818074579,-507.91,0.00019452,2]
[323230675,1713818074589,-1367.4,0.00019452,2]
[323230676,1713818074598,-525.05,0.00019452,2]
[323230677,1713818074608,-1643.75,0.00019452,2]
[323230678,1713818074617,-1037.47,0.00019452,2]
[323230679,1713818074628,-535.15,0.00019452,2]
[323230680,1713818074640,-1478.09,0.00019452,2]
[323230681,1713818074650,-504.89,0.00019452,2]
[323230682,1713818074660,-637.42844922,0.00019452,2]
[323230683,1713818074670,-751.72,0.00019452,2]
[323230684,1713818074683,-627.98,0.00019452,2]
[323230685,1713818074693,-1578.31,0.00019452,2]
[323230686,1713818074702,-849.45,0.00019452,2]